{"text_format":"3","workbook":"xlsx","n_sheets":4,"sheets":["Összesítés","Eszközök","Források","Kategóriák"],"not_rendered":{"defined_names":10},"read":"whole","date_system":"1900"}

{"sheet":"Összesítés","index":0,"n_rows":12,"n_cols":4,"rows_kept":12}
[null,"Mérleg"]
[null,null,{"$f":"\"PÉ-\"&YEAR(TODAY())-1","v":"PÉ-2016"},{"$f":"\"PÉ-\"&YEAR(TODAY())","v":"PÉ-2017"}]
[null,"Eszköz típusa","Előző év","Folyó év"]
[null,"Forgóeszközök",{"$f":"SUMIFS(Eszközök[Előző év],Eszközök[Eszköz típusa],Irányítópult[[#This Row],[Eszköz típusa]])+SUMIFS(Források[Előző év],Források[Forrás típusa],Irányítópult[[#This Row],[Eszköz típusa]])","v":600},{"$f":"SUMIFS(Eszközök[Folyó év],Eszközök[Eszköz típusa],Irányítópult[[#This Row],[Eszköz típusa]])+SUMIFS(Források[Folyó év],Források[Forrás típusa],Irányítópult[[#This Row],[Eszköz típusa]])","v":600}]
[null,"Tárgyi eszközök",{"$f":"SUMIFS(Eszközök[Előző év],Eszközök[Eszköz típusa],Irányítópult[[#This Row],[Eszköz típusa]])+SUMIFS(Források[Előző év],Források[Forrás típusa],Irányítópult[[#This Row],[Eszköz típusa]])","v":{"v":-100,"d":"-100 "}},{"$f":"SUMIFS(Eszközök[Folyó év],Eszközök[Eszköz típusa],Irányítópult[[#This Row],[Eszköz típusa]])+SUMIFS(Források[Folyó év],Források[Forrás típusa],Irányítópult[[#This Row],[Eszköz típusa]])","v":{"v":-85,"d":"-85 "}}]
[null,"Egyéb eszközök",{"$f":"SUMIFS(Eszközök[Előző év],Eszközök[Eszköz típusa],Irányítópult[[#This Row],[Eszköz típusa]])+SUMIFS(Források[Előző év],Források[Forrás típusa],Irányítópult[[#This Row],[Eszköz típusa]])","v":0},{"$f":"SUMIFS(Eszközök[Folyó év],Eszközök[Eszköz típusa],Irányítópult[[#This Row],[Eszköz típusa]])+SUMIFS(Források[Folyó év],Források[Forrás típusa],Irányítópult[[#This Row],[Eszköz típusa]])","v":0}]
[null,"Rövid lejáratú kötelezettségek",{"$f":"SUMIFS(Eszközök[Előző év],Eszközök[Eszköz típusa],Irányítópult[[#This Row],[Eszköz típusa]])+SUMIFS(Források[Előző év],Források[Forrás típusa],Irányítópult[[#This Row],[Eszköz típusa]])","v":500},{"$f":"SUMIFS(Eszközök[Folyó év],Eszközök[Eszköz típusa],Irányítópult[[#This Row],[Eszköz típusa]])+SUMIFS(Források[Folyó év],Források[Forrás típusa],Irányítópult[[#This Row],[Eszköz típusa]])","v":350}]
[null,"Hosszú lejáratú kötelezettségek",{"$f":"SUMIFS(Eszközök[Előző év],Eszközök[Eszköz típusa],Irányítópult[[#This Row],[Eszköz típusa]])+SUMIFS(Források[Előző év],Források[Forrás típusa],Irányítópult[[#This Row],[Eszköz típusa]])","v":0},{"$f":"SUMIFS(Eszközök[Folyó év],Eszközök[Eszköz típusa],Irányítópult[[#This Row],[Eszköz típusa]])+SUMIFS(Források[Folyó év],Források[Forrás típusa],Irányítópult[[#This Row],[Eszköz típusa]])","v":0}]
[null,"Tulajdonosi részvény",{"$f":"SUMIFS(Eszközök[Előző év],Eszközök[Eszköz típusa],Irányítópult[[#This Row],[Eszköz típusa]])+SUMIFS(Források[Előző év],Források[Forrás típusa],Irányítópult[[#This Row],[Eszköz típusa]])","v":0},{"$f":"SUMIFS(Eszközök[Folyó év],Eszközök[Eszköz típusa],Irányítópult[[#This Row],[Eszköz típusa]])+SUMIFS(Források[Folyó év],Források[Forrás típusa],Irányítópult[[#This Row],[Eszköz típusa]])","v":350}]
[null,"Eszközök összesen",{"$f":"Eszközök[[#Totals],[Előző év]]","v":500},{"$f":"Eszközök[[#Totals],[Folyó év]]","v":515}]
[null,"Összes forrás és saját tőke",{"$f":"Források[[#Totals],[Előző év]]","v":500},{"$f":"Források[[#Totals],[Folyó év]]","v":700}]
[null,"Egyenleg",{"$f":"C10-C11","v":0},{"$f":"D10-D11","v":{"v":-185,"d":"-185 "}}]

{"sheet":"Eszközök","index":1,"n_rows":14,"n_cols":5,"rows_kept":14}
[null,"Eszközök"]
[{"$nulls":3},{"$f":"PÜ_ÉV","v":"PÉ-2016"},{"$f":"PÜ_ÉV_2","v":"PÉ-2017"}]
[null,"Eszköz típusa","Leírás","Előző év","Folyó év"]
[null,"Forgóeszközök","Pénz",600,600]
[null,"Forgóeszközök","Befektetések"]
[null,"Forgóeszközök","Készletek"]
[null,"Forgóeszközök","Kinnlévőségek"]
[null,"Forgóeszközök","Előre kifizetett költségek"]
[null,"Tárgyi eszközök","Ingatlan és berendezések"]
[null,"Tárgyi eszközök","Bérlemények fejlesztései"]
[null,"Tárgyi eszközök","Részvények és egyéb befektetések"]
[null,"Tárgyi eszközök","Mínusz halmozott értékcsökkenés (negatív érték)",{"v":-100,"d":"-100 "},{"v":-85,"d":"-85 "}]
[null,"Egyéb eszközök","Adományok"]
[null,"Eszközök összesen",null,{"$f":"SUBTOTAL(109,Eszközök[Előző év])","v":500},{"$f":"SUBTOTAL(109,Eszközök[Folyó év])","v":515}]

{"sheet":"Források","index":2,"n_rows":12,"n_cols":5,"rows_kept":12}
[null,"Források"]
[{"$nulls":3},{"$f":"PÜ_ÉV","v":"PÉ-2016"},{"$f":"PÜ_ÉV_2","v":"PÉ-2017"}]
[null,"Forrás típusa","Leírás","Előző év","Folyó év"]
[null,"Rövid lejáratú kötelezettségek","Kötelezettségek",null,350]
[null,"Rövid lejáratú kötelezettségek","Elhatárolt bérek"]
[null,"Rövid lejáratú kötelezettségek","Elhatárolt díjak",500]
[null,"Rövid lejáratú kötelezettségek","Fizetendő jövedelemadó"]
[null,"Rövid lejáratú kötelezettségek","Elhatárolt bevétel"]
[null,"Hosszú lejáratú kötelezettségek","Fizetendő jelzáloghitel"]
[null,"Tulajdonosi részvény","Befektetett tőke",null,350]
[null,"Tulajdonosi részvény","Felhalmozott eredmény"]
[null,"Összes forrás és saját tőke",null,{"$f":"SUBTOTAL(109,Források[Előző év])","v":500},{"$f":"SUBTOTAL(109,Források[Folyó év])","v":700}]

{"sheet":"Kategóriák","index":3,"n_rows":9,"n_cols":2,"rows_kept":9}
[null,"Kategóriák"]
[]
[null,"Kategóriák"]
[null,"Forgóeszközök"]
[null,"Tárgyi eszközök"]
[null,"Egyéb eszközök"]
[null,"Rövid lejáratú kötelezettségek"]
[null,"Hosszú lejáratú kötelezettségek"]
[null,"Tulajdonosi részvény"]